[Event "Kvibergspelen 2022"]
[Site "Kviberg Park Hotel & Conference, Krutvagen 2, Gothenburg, Sweden"]
[Date "2022.09.30"]
[Round "3.11"]
[White "Heidarsson, Arnar Milutin"]
[Black "Johannesson, Oliver"]
[Result "0-1"]
[TimeControl "15 minutes + 5 seconds per move from move one (Round 1 - 4) / 90 minutes + 30 seconds per move from move one (Round 5 - 8)"]
[BlackTitle "FM"]
[WhiteFideId "2312875"]
[BlackFideId "2305623"]
[WhiteElo "2020"]
[BlackElo "2205"]

1. d4 {[%clk 00:15:08]} {[%emt 00:00:02]} d5 {[%clk 00:15:07]} {[%emt
00:00:04]} 2. c4 {[%clk 00:15:11]} {[%emt 00:00:01]} c6 {[%clk 00:15:11]}
{[%emt 00:00:02]} 3. Nc3 {[%clk 00:15:15]} Nf6 {[%clk 00:14:42]} {[%emt
00:00:34]} 4. cxd5 {[%clk 00:15:18]} {[%emt 00:00:02]} cxd5 {[%clk 00:14:44]}
{[%emt 00:00:03]} 5. f3 {[%clk 00:15:21]} Nc6 {[%clk 00:14:30]} {[%emt
00:00:19]} 6. e4 {[%clk 00:15:23]} {[%emt 00:00:03]} a6 {[%clk 00:13:43]}
{[%emt 00:00:52]} 7. e5 {[%clk 00:15:22]} {[%emt 00:00:06]} Nd7 {[%clk
00:12:31]} {[%emt 00:01:18]} 8. f4 {[%clk 00:13:20]} {[%emt 00:02:07]} Nb6
{[%clk 00:12:23]} {[%emt 00:00:12]} 9. Nf3 {[%clk 00:13:22]} {[%emt 00:00:02]}
Bg4 {[%clk 00:12:24]} {[%emt 00:00:06]} 10. Be2 {[%clk 00:13:16]} {[%emt
00:00:10]} e6 {[%clk 00:12:27]} {[%emt 00:00:03]} 11. O-O {[%clk 00:13:15]}
{[%emt 00:00:05]} Rc8 {[%clk 00:11:38]} {[%emt 00:00:54]} 12. Be3 {[%clk
00:13:12]} {[%emt 00:00:08]} Nc4 {[%clk 00:10:52]} {[%emt 00:00:51]} 13. Bxc4
{[%clk 00:13:11]} {[%emt 00:00:06]} dxc4 {[%clk 00:10:56]} {[%emt 00:00:01]} 14.
d5 {[%clk 00:12:26]} {[%emt 00:00:50]} exd5 {[%clk 00:09:45]} {[%emt 00:01:16]}
15. Nxd5 {[%clk 00:11:59]} {[%emt 00:00:32]} Be7 {[%clk 00:09:11]} {[%emt
00:00:39]} 16. Nb6 {[%clk 00:11:24]} {[%emt 00:00:40]} Rb8 {[%clk 00:08:47]}
{[%emt 00:00:30]} 17. Nxc4 {[%clk 00:11:13]} {[%emt 00:00:16]} O-O {[%clk
00:08:50]} {[%emt 00:00:01]} 18. Qe2 {[%clk 00:10:01]} {[%emt 00:01:17]} Qd5
{[%clk 00:08:32]} {[%emt 00:00:23]} 19. Rad1 {[%clk 00:09:40]} {[%emt
00:00:27]} Qe4 {[%clk 00:08:35]} 20. Qd3 {[%clk 00:09:20]} {[%emt 00:00:23]}
Qxd3 {[%clk 00:08:22]} {[%emt 00:00:20]} 21. Rxd3 {[%clk 00:09:24]} Nb4 {[%clk
00:08:26]} {[%emt 00:00:02]} 22. Rb3 {[%clk 00:09:00]} {[%emt 00:00:29]} Be6
{[%clk 00:08:07]} {[%emt 00:00:24]} 23. Rc3 {[%clk 00:07:43]} {[%emt 00:01:22]}
Nxa2 {[%clk 00:07:24]} {[%emt 00:00:48]} 24. Rc2 {[%clk 00:07:48]} Nb4 {[%clk
00:07:13]} {[%emt 00:00:16]} 25. Rc3 {[%clk 00:07:30]} {[%emt 00:00:22]} Nd5
{[%clk 00:06:46]} {[%emt 00:00:32]} 26. Rcc1 {[%clk 00:07:24]} {[%emt
00:00:12]} b5 {[%clk 00:06:43]} {[%emt 00:00:08]} 27. Ba7 {[%clk 00:06:02]}
{[%emt 00:01:27]} Rb7 {[%clk 00:06:01]} {[%emt 00:00:46]} 28. Na5 {[%clk
00:05:53]} {[%emt 00:00:14]} Rxa7 {[%clk 00:06:04]} {[%emt 00:00:03]} 29. Nc6
{[%clk 00:05:57]} Rc7 {[%clk 00:05:41]} {[%emt 00:00:28]} 30. Nfd4 {[%clk
00:05:54]} {[%emt 00:00:07]} Rfc8 {[%clk 00:05:11]} {[%emt 00:00:36]} 31. f5
{[%clk 00:04:33]} {[%emt 00:01:26]} Bd7 {[%clk 00:05:09]} {[%emt 00:00:07]} 32.
Nxe7+ {[%clk 00:04:33]} {[%emt 00:00:05]} Nxe7 {[%clk 00:05:13]} {[%emt
00:00:02]} 33. Rcd1 {[%clk 00:03:49]} {[%emt 00:00:49]} Nc6 {[%clk 00:05:15]}
{[%emt 00:00:03]} 34. Nxc6 {[%clk 00:03:06]} {[%emt 00:00:47]} Bxc6 {[%clk
00:05:17]} {[%emt 00:00:03]} 35. Rd6 {[%clk 00:03:11]} Rd7 {[%clk 00:05:06]}
{[%emt 00:00:16]} 36. Rfd1 {[%clk 00:03:15]} Rxd6 {[%clk 00:05:05]} {[%emt
00:00:07]} 37. Rxd6 {[%clk 00:03:19]} Kf8 {[%clk 00:04:56]} {[%emt 00:00:14]}
38. Kf2 {[%clk 00:03:23]} a5 {[%clk 00:04:48]} {[%emt 00:00:14]} 39. g4 {[%clk
00:03:25]} {[%emt 00:00:03]} Ke7 {[%clk 00:04:34]} {[%emt 00:00:19]} 40. Ke3
{[%clk 00:03:27]} {[%emt 00:00:03]} f6 {[%clk 00:04:20]} {[%emt 00:00:19]} 41.
Re6+ {[%clk 00:03:31]} Kf7 {[%clk 00:04:24]} 42. exf6 {[%clk 00:03:35]} {[%emt
00:00:02]} Re8 {[%clk 00:02:41]} {[%emt 00:01:48]} 43. fxg7 {[%clk 00:03:34]}
{[%emt 00:00:06]} Rxe6+ {[%clk 00:02:41]} {[%emt 00:00:05]} 44. fxe6+ {[%clk
00:03:38]} Kxg7 {[%clk 00:02:44]} {[%emt 00:00:01]} 45. Kd4 {[%clk 00:03:42]}
Kf6 {[%clk 00:02:46]} {[%emt 00:00:03]} 46. Kc5 {[%clk 00:03:47]} Be8 {[%clk
00:02:49]} 47. Kd6 {[%clk 00:03:51]} a4 {[%clk 00:02:50]} {[%emt 00:00:04]} 48.
g5 {[%clk 00:03:19]} {[%emt 00:00:37]} Kxg5 {[%clk 00:02:53]} {[%emt 00:00:03]}
49. Ke7 {[%clk 00:03:23]} Bg6 {[%clk 00:02:51]} {[%emt 00:00:04]} 0-1

[Event "Kvibergspelen 2022"]
[Site "Kviberg Park Hotel & Conference, Krutvagen 2, Gothenburg, Sweden"]
[Date "2022.09.30"]
[Round "3.12"]
[White "Rasti, Arvin"]
[Black "Andersson, Christian"]
[Result "1-0"]
[TimeControl "15 minutes + 5 seconds per move from move one (Round 1 - 4) / 90 minutes + 30 seconds per move from move one (Round 5 - 8)"]
[WhiteFideId "1741160"]
[BlackFideId "1724789"]
[WhiteElo "2186"]
[BlackElo "1781"]

1. e4 {[%clk 00:15:08]} {[%emt 00:00:01]} c5 {[%clk 00:15:05]} {[%emt
00:00:06]} 2. Nf3 {[%clk 00:15:09]} {[%emt 00:00:05]} Nc6 {[%clk 00:15:07]}
{[%emt 00:00:02]} 3. Bb5 {[%clk 00:15:08]} {[%emt 00:00:06]} a6 {[%clk
00:14:25]} {[%emt 00:00:47]} 4. Bxc6 {[%clk 00:15:04]} {[%emt 00:00:09]} dxc6
{[%clk 00:14:21]} {[%emt 00:00:08]} 5. O-O {[%clk 00:14:57]} {[%emt 00:00:12]}
Qc7 {[%clk 00:14:10]} {[%emt 00:00:15]} 6. e5 {[%clk 00:14:39]} {[%emt
00:00:24]} Bg4 {[%emt 00:00:32]} 7. Re1 {[%clk 00:14:38]} {[%emt 00:00:05]}
O-O-O {[%clk 00:13:26]} {[%emt 00:00:23]} 8. h3 {[%clk 00:14:37]} {[%emt
00:00:07]} Bh5 {[%clk 00:13:03]} {[%emt 00:00:28]} 9. b3 {[%clk 00:14:20]}
{[%emt 00:00:22]} h6 {[%clk 00:10:36]} {[%emt 00:02:30]} 10. e6 {[%clk
00:13:44]} {[%emt 00:00:42]} fxe6 {[%clk 00:10:02]} {[%emt 00:00:38]} 11. Bb2
{[%clk 00:13:46]} {[%emt 00:00:04]} Nf6 {[%clk 00:09:51]} {[%emt 00:00:15]} 12.
Be5 {[%clk 00:13:45]} {[%emt 00:00:07]} Qd7 {[%clk 00:09:49]} {[%emt 00:00:07]}
13. Nc3 {[%clk 00:12:56]} {[%emt 00:00:54]} Rg8 {[%clk 00:09:33]} {[%emt
00:00:21]} 14. Na4 {[%clk 00:12:57]} {[%emt 00:00:05]} Nd5 {[%clk 00:06:47]}
{[%emt 00:02:50]} 15. c4 {[%clk 00:13:00]} {[%emt 00:00:02]} b5 {[%clk
00:06:51]} {[%emt 00:00:01]} 16. Nxc5 {[%clk 00:12:55]} {[%emt 00:00:11]} 1-0

[Event "Kvibergspelen 2022"]
[Site "Kviberg Park Hotel & Conference, Krutvagen 2, Gothenburg, Sweden"]
[Date "2022.09.30"]
[Round "3.13"]
[White "Persson, Sebastian"]
[Black "Malmqvist, Glenn"]
[Result "1-0"]
[TimeControl "15 minutes + 5 seconds per move from move one (Round 1 - 4) / 90 minutes + 30 seconds per move from move one (Round 5 - 8)"]
[WhiteFideId "1764187"]
[BlackFideId "1705750"]
[WhiteElo "1659"]
[BlackElo "2172"]

1. d4 {[%clk 00:15:08]} {[%emt 00:00:02]} d5 {[%clk 00:15:07]} {[%emt
00:00:04]} 2. c4 {[%clk 00:15:07]} {[%emt 00:00:06]} e6 {[%clk 00:15:10]}
{[%emt 00:00:02]} 3. Nf3 {[%clk 00:15:06]} {[%emt 00:00:06]} Nf6 {[%clk
00:15:10]} {[%emt 00:00:05]} 4. Bg5 {[%clk 00:15:02]} {[%emt 00:00:09]} Be7
{[%clk 00:15:13]} {[%emt 00:00:03]} 5. e3 {[%clk 00:14:57]} {[%emt 00:00:09]}
O-O {[%clk 00:15:00]} {[%emt 00:00:18]} 6. Be2 {[%clk 00:14:50]} {[%emt
00:00:12]} Ne4 {[%clk 00:12:09]} {[%emt 00:02:56]} 7. Bxe7 {[%clk 00:14:17]}
{[%emt 00:00:38]} Qxe7 {[%clk 00:12:11]} {[%emt 00:00:03]} 8. O-O {[%clk
00:14:06]} {[%emt 00:00:16]} Nd7 {[%clk 00:10:54]} {[%emt 00:01:23]} 9. Nc3
{[%clk 00:13:15]} {[%emt 00:00:56]} Ndf6 {[%clk 00:10:51]} {[%emt 00:00:07]} 10.
Qb3 {[%clk 00:12:26]} {[%emt 00:00:54]} c6 {[%clk 00:10:08]} {[%emt 00:00:49]}
11. a4 {[%clk 00:11:29]} {[%emt 00:01:02]} Nxc3 {[%clk 00:10:04]} {[%emt
00:00:09]} 12. bxc3 {[%clk 00:11:22]} {[%emt 00:00:12]} Ne4 {[%clk 00:09:20]}
{[%emt 00:00:49]} 13. a5 {[%clk 00:10:52]} {[%emt 00:00:35]} g5 {[%clk
00:09:21]} {[%emt 00:00:03]} 14. Bd3 {[%clk 00:09:33]} {[%emt 00:01:24]} g4
{[%clk 00:06:43]} {[%emt 00:02:43]} 15. Bxe4 {[%clk 00:09:07]} {[%emt
00:00:31]} dxe4 {[%clk 00:06:45]} {[%emt 00:00:03]} 16. Nd2 {[%clk 00:08:15]}
{[%emt 00:00:58]} f5 {[%clk 00:05:59]} {[%emt 00:00:52]} 17. c5 {[%clk
00:07:56]} {[%emt 00:00:24]} Rf6 {[%clk 00:05:52]} {[%emt 00:00:12]} 18. f3
{[%clk 00:06:23]} {[%emt 00:01:38]} Rh6 {[%clk 00:03:09]} {[%emt 00:02:48]} 19.
fxg4 {[%clk 00:05:59]} {[%emt 00:00:29]} Qh4 {[%clk 00:03:06]} {[%emt
00:00:08]} 20. h3 {[%clk 00:05:39]} {[%emt 00:00:25]} fxg4 {[%clk 00:03:09]}
{[%emt 00:00:03]} 21. Rf4 {[%clk 00:05:33]} {[%emt 00:00:10]} Rg6 {[%clk
00:02:11]} {[%emt 00:01:03]} 22. Nxe4 {[%clk 00:04:52]} {[%emt 00:00:47]} Qe7
{[%clk 00:01:43]} {[%emt 00:00:33]} 23. Rxg4 {[%clk 00:04:16]} {[%emt
00:00:41]} Rxg4 {[%clk 00:01:35]} {[%emt 00:00:13]} 24. hxg4 {[%clk 00:04:20]}
Kg7 {[%clk 00:01:39]} {[%emt 00:00:01]} 25. Rf1 {[%clk 00:04:01]} {[%emt
00:00:24]} e5 {[%clk 00:01:10]} {[%emt 00:00:34]} 26. Nd6 {[%clk 00:03:29]}
{[%emt 00:00:37]} Be6 {[%clk 00:00:59]} {[%emt 00:00:17]} 27. Qxb7 {[%clk
00:03:27]} {[%emt 00:00:06]} Qxb7 {[%clk 00:00:51]} {[%emt 00:00:13]} 28. Nxb7
{[%clk 00:03:30]} {[%emt 00:00:01]} exd4 {[%clk 00:00:54]} {[%emt 00:00:02]} 29.
cxd4 {[%clk 00:03:29]} {[%emt 00:00:06]} Rb8 {[%clk 00:00:32]} {[%emt
00:00:28]} 30. Nd6 {[%clk 00:03:18]} {[%emt 00:00:16]} Bxg4 {[%clk 00:00:30]}
{[%emt 00:00:06]} 31. e4 {[%clk 00:02:46]} {[%emt 00:00:36]} Rb4 {[%clk
00:00:28]} {[%emt 00:00:07]} 32. Rf4 {[%clk 00:02:49]} {[%emt 00:00:03]} h5
{[%clk 00:00:28]} {[%emt 00:00:05]} 33. e5 {[%clk 00:02:47]} {[%emt 00:00:06]}
1-0

[Event "Kvibergspelen 2022"]
[Site "Kviberg Park Hotel & Conference, Krutvagen 2, Gothenburg, Sweden"]
[Date "2022.09.30"]
[Round "3.14"]
[White "Kjartansson, Matthias Bjorgvin"]
[Black "Mitusov, Semen"]
[Result "0-1"]
[TimeControl "15 minutes + 5 seconds per move from move one (Round 1 - 4) / 90 minutes + 30 seconds per move from move one (Round 5 - 8)"]
[BlackTitle "FM"]
[WhiteFideId "2319225"]
[BlackFideId "14151049"]
[WhiteElo "1494"]
[BlackElo "2418"]

1. d4 {[%clk 00:15:08]} {[%emt 00:00:01]} d5 {[%clk 00:15:07]} {[%emt
00:00:04]} 2. c4 {[%clk 00:15:11]} {[%emt 00:00:02]} e6 {[%clk 00:14:57]}
{[%emt 00:00:13]} 3. Nc3 {[%clk 00:15:13]} {[%emt 00:00:04]} Be7 {[%clk
00:14:25]} {[%emt 00:00:38]} 4. Nf3 {[%clk 00:15:12]} {[%emt 00:00:06]} Nf6
{[%clk 00:14:28]} {[%emt 00:00:03]} 5. Bg5 {[%clk 00:15:02]} {[%emt 00:00:13]}
O-O {[%clk 00:14:22]} {[%emt 00:00:11]} 6. e3 {[%clk 00:14:55]} {[%emt
00:00:13]} h6 {[%clk 00:14:16]} {[%emt 00:00:10]} 7. Bh4 {[%clk 00:14:54]}
{[%emt 00:00:06]} b6 {[%clk 00:14:09]} {[%emt 00:00:13]} 8. cxd5 {[%clk
00:14:46]} {[%emt 00:00:12]} Nxd5 {[%clk 00:13:37]} {[%emt 00:00:37]} 9. Nxd5
{[%clk 00:14:28]} {[%emt 00:00:23]} exd5 {[%clk 00:13:39]} {[%emt 00:00:04]} 10.
Bxe7 {[%clk 00:14:27]} {[%emt 00:00:05]} Qxe7 {[%clk 00:13:42]} {[%emt
00:00:02]} 11. Be2 {[%clk 00:14:31]} {[%emt 00:00:02]} Be6 {[%clk 00:13:42]}
{[%emt 00:00:05]} 12. O-O {[%clk 00:14:27]} {[%emt 00:00:08]} c5 {[%clk
00:13:43]} {[%emt 00:00:04]} 13. dxc5 {[%clk 00:13:55]} {[%emt 00:00:37]} bxc5
{[%clk 00:13:43]} {[%emt 00:00:05]} 14. Rc1 {[%clk 00:13:57]} {[%emt 00:00:03]}
Nd7 {[%clk 00:13:38]} {[%emt 00:00:09]} 15. Re1 {[%clk 00:13:54]} {[%emt
00:00:09]} Rab8 {[%clk 00:13:21]} {[%emt 00:00:22]} 16. b3 {[%clk 00:13:47]}
{[%emt 00:00:12]} Rfc8 {[%clk 00:13:20]} {[%emt 00:00:06]} 17. Qd2 {[%clk
00:13:28]} {[%emt 00:00:24]} Rb6 {[%clk 00:13:04]} {[%emt 00:00:21]} 18. Nd4
{[%clk 00:12:47]} {[%emt 00:00:46]} Nf6 {[%clk 00:12:42]} {[%emt 00:00:27]} 19.
Nxe6 {[%clk 00:12:41]} {[%emt 00:00:11]} fxe6 {[%clk 00:12:25]} {[%emt
00:00:23]} 20. Bf3 {[%clk 00:12:43]} {[%emt 00:00:03]} Nd7 {[%clk 00:11:09]}
{[%emt 00:01:21]} 21. Qc3 {[%clk 00:12:04]} {[%emt 00:00:44]} Rbc6 {[%clk
00:10:54]} {[%emt 00:00:20]} 22. Red1 {[%clk 00:11:22]} {[%emt 00:00:46]} R6c7
{[%clk 00:10:52]} {[%emt 00:00:07]} 23. Qb2 {[%clk 00:11:17]} {[%emt 00:00:10]}
Qd6 {[%clk 00:10:28]} {[%emt 00:00:29]} 24. g3 {[%clk 00:09:09]} {[%emt
00:02:14]} Nb6 {[%clk 00:10:20]} {[%emt 00:00:14]} 25. Qa3 {[%clk 00:08:55]}
{[%emt 00:00:19]} Qe5 {[%clk 00:09:45]} {[%emt 00:00:39]} 26. Bg4 {[%clk
00:08:08]} {[%emt 00:00:52]} h5 {[%clk 00:09:28]} {[%emt 00:00:23]} 27. Bh3
{[%clk 00:08:06]} {[%emt 00:00:06]} h4 {[%clk 00:08:42]} {[%emt 00:00:52]} 28.
Qa6 {[%clk 00:07:23]} {[%emt 00:00:48]} Qf6 {[%clk 00:08:10]} {[%emt 00:00:37]}
29. a4 {[%clk 00:06:53]} {[%emt 00:00:35]} Kf7 {[%clk 00:08:09]} {[%emt
00:00:06]} 30. Qe2 {[%clk 00:06:43]} {[%emt 00:00:16]} Rh8 {[%clk 00:08:04]}
{[%emt 00:00:08]} 31. Rf1 {[%clk 00:06:41]} {[%emt 00:00:07]} Nd7 {[%clk
00:08:01]} {[%emt 00:00:09]} 32. Bg2 {[%clk 00:06:14]} {[%emt 00:00:31]} Ke7
{[%clk 00:07:46]} {[%emt 00:00:21]} 33. Qg4 {[%clk 00:05:51]} {[%emt 00:00:28]}
Ne5 {[%clk 00:06:24]} {[%emt 00:01:27]} 34. Qf4 {[%clk 00:05:19]} {[%emt
00:00:37]} Rb8 {[%clk 00:05:39]} {[%emt 00:00:50]} 35. Rc3 {[%clk 00:04:27]}
{[%emt 00:00:57]} hxg3 {[%clk 00:05:13]} {[%emt 00:00:31]} 36. fxg3 {[%clk
00:04:14]} {[%emt 00:00:18]} Qxf4 {[%clk 00:04:51]} {[%emt 00:00:27]} 37. exf4
{[%clk 00:04:08]} {[%emt 00:00:10]} d4 {[%clk 00:04:46]} {[%emt 00:00:10]} 38.
Rcc1 {[%clk 00:03:44]} {[%emt 00:00:29]} Ng4 {[%clk 00:04:00]} {[%emt
00:00:51]} 39. Rb1 {[%clk 00:02:59]} {[%emt 00:00:50]} Ne3 {[%clk 00:04:01]}
{[%emt 00:00:03]} 40. Rf3 {[%clk 00:02:47]} {[%emt 00:00:16]} Rcc8 {[%clk
00:03:54]} {[%emt 00:00:14]} 41. Bf1 {[%clk 00:02:31]} {[%emt 00:00:20]} Rb4
{[%clk 00:03:52]} {[%emt 00:00:07]} 42. Bb5 {[%clk 00:02:02]} {[%emt 00:00:34]}
c4 {[%clk 00:03:21]} {[%emt 00:00:36]} 43. Rc1 {[%clk 00:01:28]} {[%emt
00:00:39]} c3 {[%clk 00:03:16]} {[%emt 00:00:10]} 44. Rxe3 {[%clk 00:01:18]}
{[%emt 00:00:15]} dxe3 {[%clk 00:03:06]} {[%emt 00:00:16]} 45. Bc4 {[%clk
00:01:22]} Rbxc4 {[%clk 00:02:38]} {[%emt 00:00:33]} 46. bxc4 {[%clk 00:01:23]}
{[%emt 00:00:04]} Rxc4 {[%clk 00:02:42]} 47. Kf1 {[%clk 00:01:19]} {[%emt
00:00:09]} c2 {[%clk 00:02:45]} {[%emt 00:00:03]} 48. Ke2 {[%clk 00:01:20]}
{[%emt 00:00:04]} Rc3 {[%clk 00:02:49]} {[%emt 00:00:01]} 49. h3 {[%clk
00:01:09]} {[%emt 00:00:15]} Kd6 {[%clk 00:02:49]} {[%emt 00:00:05]} 50. Kf3
{[%clk 00:01:08]} {[%emt 00:00:06]} Kd5 {[%clk 00:02:52]} {[%emt 00:00:02]} 51.
g4 {[%clk 00:01:05]} {[%emt 00:00:09]} Kc4 {[%clk 00:02:54]} {[%emt 00:00:04]}
52. f5 {[%clk 00:01:02]} {[%emt 00:00:07]} exf5 {[%clk 00:02:57]} {[%emt
00:00:02]} 53. gxf5 {[%clk 00:01:06]} Kd3 {[%clk 00:02:54]} {[%emt 00:00:08]}
0-1

[Event "Kvibergspelen 2022"]
[Site "Kviberg Park Hotel & Conference, Krutvagen 2, Gothenburg, Sweden"]
[Date "2022.09.30"]
[Round "3.16"]
[White "Nygren, David"]
[Black "Olsson, Thomas"]
[Result "1/2-1/2"]
[TimeControl "15 minutes + 5 seconds per move from move one (Round 1 - 4) / 90 minutes + 30 seconds per move from move one (Round 5 - 8)"]
[WhiteFideId "1704761"]
[BlackFideId "1702696"]
[WhiteElo "2165"]
[BlackElo "1908"]

1. e4 {[%clk 00:15:07]} {[%emt 00:00:02]} e5 {[%clk 00:15:09]} {[%emt
00:00:02]} 2. Nf3 {[%clk 00:15:10]} {[%emt 00:00:02]} Nc6 {[%clk 00:15:11]}
{[%emt 00:00:02]} 3. Bb5 {[%clk 00:15:12]} {[%emt 00:00:02]} a6 {[%clk
00:15:12]} {[%emt 00:00:05]} 4. Ba4 {[%clk 00:15:14]} {[%emt 00:00:03]} d6
{[%clk 00:15:12]} {[%emt 00:00:06]} 5. Bxc6+ {[%clk 00:15:09]} {[%emt
00:00:09]} bxc6 {[%clk 00:15:15]} {[%emt 00:00:02]} 6. d4 {[%clk 00:15:12]}
{[%emt 00:00:02]} f6 {[%clk 00:15:14]} {[%emt 00:00:05]} 7. Nc3 {[%clk
00:15:07]} {[%emt 00:00:11]} Ne7 {[%clk 00:15:11]} {[%emt 00:00:09]} 8. Be3
{[%clk 00:14:54]} {[%emt 00:00:18]} Ng6 {[%clk 00:15:08]} {[%emt 00:00:07]} 9.
Qd2 {[%clk 00:14:39]} {[%emt 00:00:20]} Be7 {[%clk 00:14:37]} {[%emt 00:00:36]}
10. h4 {[%clk 00:14:31]} {[%emt 00:00:13]} h5 {[%clk 00:14:39]} {[%emt
00:00:03]} 11. O-O-O {[%clk 00:14:01]} {[%emt 00:00:35]} Bd7 {[%clk 00:14:37]}
{[%emt 00:00:07]} 12. Rde1 {[%clk 00:13:45]} {[%emt 00:00:21]} Qb8 {[%clk
00:13:58]} {[%emt 00:00:44]} 13. g3 {[%clk 00:13:22]} {[%emt 00:00:29]} Qb4
{[%clk 00:13:37]} {[%emt 00:00:26]} 14. Nb1 {[%clk 00:12:44]} {[%emt 00:00:43]}
Qa4 {[%clk 00:12:20]} {[%emt 00:01:22]} 15. Nc3 {[%clk 00:11:49]} {[%emt
00:00:59]} Qb4 {[%clk 00:12:20]} {[%emt 00:00:05]} 16. Qd3 {[%clk 00:11:35]}
{[%emt 00:00:19]} Rb8 {[%clk 00:11:11]} {[%emt 00:01:13]} 17. Nd1 {[%clk
00:11:21]} {[%emt 00:00:20]} Bg4 {[%clk 00:10:37]} {[%emt 00:00:39]} 18. Bd2
{[%clk 00:10:51]} {[%emt 00:00:35]} Qb7 {[%clk 00:10:21]} {[%emt 00:00:22]} 19.
Bc3 {[%clk 00:10:35]} {[%emt 00:00:21]} Qb5 {[%clk 00:09:30]} {[%emt 00:00:56]}
20. Qxb5 {[%clk 00:09:57]} {[%emt 00:00:43]} cxb5 {[%clk 00:09:26]} {[%emt
00:00:09]} 21. Re3 {[%clk 00:09:21]} {[%emt 00:00:41]} b4 {[%clk 00:09:15]}
{[%emt 00:00:17]} 22. Bd2 {[%clk 00:09:05]} {[%emt 00:00:21]} Bxf3 {[%clk
00:09:05]} {[%emt 00:00:15]} 23. Rxf3 {[%clk 00:09:09]} {[%emt 00:00:02]} exd4
{[%clk 00:09:08]} {[%emt 00:00:02]} 24. Rf5 {[%clk 00:08:48]} {[%emt 00:00:26]}
c5 {[%clk 00:08:50]} {[%emt 00:00:23]} 25. Bf4 {[%clk 00:08:25]} {[%emt
00:00:28]} Kd7 {[%clk 00:08:29]} {[%emt 00:00:26]} 26. Bd2 {[%clk 00:08:11]}
{[%emt 00:00:18]} Ne5 {[%clk 00:08:13]} {[%emt 00:00:21]} 27. Rf4 {[%clk
00:07:59]} {[%emt 00:00:18]} a5 {[%clk 00:07:25]} {[%emt 00:00:52]} 28. f3
{[%clk 00:07:47]} {[%emt 00:00:16]} Bf8 {[%clk 00:06:20]} {[%emt 00:01:11]} 29.
g4 {[%clk 00:07:17]} {[%emt 00:00:35]} Ng6 {[%clk 00:06:03]} {[%emt 00:00:21]}
30. Rf5 {[%clk 00:07:21]} {[%emt 00:00:02]} hxg4 {[%clk 00:05:53]} {[%emt
00:00:14]} 31. h5 {[%clk 00:07:24]} {[%emt 00:00:02]} Ne7 {[%clk 00:05:45]}
{[%emt 00:00:14]} 32. Rf4 {[%clk 00:07:28]} {[%emt 00:00:01]} gxf3 {[%clk
00:05:39]} 33. Rxf3 {[%clk 00:07:32]} Nc6 {[%clk 00:05:35]} {[%emt 00:00:09]}
34. Bf4 {[%clk 00:07:11]} {[%emt 00:00:27]} Ne5 {[%clk 00:05:25]} {[%emt
00:00:14]} 1/2-1/2